[Event "Titled Tuesday Blitz May 9 Late 2023"]
[White "Bruedigam, Martin"]
[Black "Souza, Adwilhans Luciano"]
[WhiteFideId "24608033"]
[BlackFideId "2101793"]
[WhiteElo "2331"]
[BlackElo "2288"]
[Result "1-0"]
[Round "06"]
[TimeControl "180+2"]
[Date "2023.05.09"]
[WhiteClock "0:00:17"]
[BlackClock "0:00:01"]

1. d4 {[%clk 0:03:00]}  Nf6 {[%clk 0:02:59]} 2. c4 {[%clk 0:03:01]}  e6 {[%clk 0:02:59]} 3. Nc3 {[%clk 0:03:02]}  Bb4 {[%clk 0:02:58]} 4. Bd2 {[%clk 0:03:02]}  O-O {[%clk 0:02:57]} 5. Nf3 {[%clk 0:03:02]}  d6 {[%clk 0:02:57]} 6. e3 {[%clk 0:02:50]}  Nc6 {[%clk 0:02:54]} 7. Qc2 {[%clk 0:02:49]}  e5 {[%clk 0:02:53]} 8. Be2 {[%clk 0:02:49]}  exd4 {[%clk 0:02:52]} 9. exd4 {[%clk 0:02:49]}  Re8 {[%clk 0:02:52]} 10. O-O {[%clk 0:02:47]}  Bg4 {[%clk 0:02:52]} 11. Be3 {[%clk 0:02:45]}  d5 {[%clk 0:02:34]} 12. c5 {[%clk 0:02:44]}  Bxc3 {[%clk 0:02:34]} 13. bxc3 {[%clk 0:02:41]}  b6 {[%clk 0:02:04]} 14. Bb5 {[%clk 0:02:37]}  Bd7 {[%clk 0:02:03]} 15. cxb6 {[%clk 0:02:33]}  axb6 {[%clk 0:02:02]} 16. Bg5 {[%clk 0:02:30]}  h6 {[%clk 0:01:59]} 17. Bh4 {[%clk 0:02:29]}  Nb4 {[%clk 0:01:49]} 18. cxb4 {[%clk 0:02:16]}  Bxb5 {[%clk 0:01:48]} 19. Rfe1 {[%clk 0:02:15]}  Rxe1+ {[%clk 0:01:29]} 20. Rxe1 {[%clk 0:02:15]}  Bc4 {[%clk 0:01:29]} 21. Ne5 {[%clk 0:02:08]}  Rxa2 {[%clk 0:01:25]} 22. Qf5 {[%clk 0:02:06]}  g5 {[%clk 0:01:15]} 23. Bxg5 {[%clk 0:01:33]}  hxg5 {[%clk 0:01:12]} 24. Qxg5+ {[%clk 0:01:33]}  Kf8 {[%clk 0:01:06]} 25. Ng4 {[%clk 0:01:06]}  Re2 {[%clk 0:00:44]} 26. Qh6+ {[%clk 0:00:38]}  Kg8 {[%clk 0:00:21]} 27. Qg5+ {[%clk 0:00:35]}  Kf8 {[%clk 0:00:21]} 28. Rxe2 {[%clk 0:00:34]}  Bxe2 {[%clk 0:00:19]} 29. Nxf6 {[%clk 0:00:34]}  Bc4 {[%clk 0:00:14]} 30. h4 {[%clk 0:00:33]}  c5 {[%clk 0:00:11]} 31. bxc5 {[%clk 0:00:31]}  bxc5 {[%clk 0:00:11]} 32. h5 {[%clk 0:00:27]}  Bd3 {[%clk 0:00:08]} 33. dxc5 {[%clk 0:00:21]}  Qa5 {[%clk 0:00:04]} 34. Qg8+ {[%clk 0:00:18]}  Ke7 {[%clk 0:00:04]} 35. Nxd5+ {[%clk 0:00:18]}  Ke6 {[%clk 0:00:04]} 36. Nf4+ {[%clk 0:00:18]}  Kf5 {[%clk 0:00:04]} 37. Nxd3 {[%clk 0:00:17]}  Qa1+ {[%clk 0:00:01]} 38. Kh2 {[%clk 0:00:17]} 1-0


[Site "https://www.chess.com"]

[Event "Titled Tuesday Blitz May 9 Late 2023"]
[White "Atanasov, Anthony"]
[Black "Martinez, Shawn"]
[WhiteFideId "2623897"]
[BlackFideId "2039770"]
[WhiteElo "2326"]
[BlackElo "2174"]
[Result "1-0"]
[Round "06"]
[TimeControl "180+2"]
[Date "2023.05.09"]
[WhiteClock "0:00:42"]
[BlackClock "0:00:02"]

1. d4 {[%clk 0:03:00]}  Nf6 {[%clk 0:02:59]} 2. Nf3 {[%clk 0:02:56]}  g6 {[%clk 0:02:59]} 3. c4 {[%clk 0:02:57]}  Bg7 {[%clk 0:02:59]} 4. e3 {[%clk 0:02:57]}  O-O {[%clk 0:02:59]} 5. Be2 {[%clk 0:02:57]}  d6 {[%clk 0:02:58]} 6. O-O {[%clk 0:02:58]}  Nc6 {[%clk 0:02:54]} 7. Nc3 {[%clk 0:02:58]}  a6 {[%clk 0:02:50]} 8. a3 {[%clk 0:02:57]}  Nd7 {[%clk 0:02:44]} 9. b4 {[%clk 0:02:56]}  e5 {[%clk 0:02:44]} 10. Bb2 {[%clk 0:02:56]}  f5 {[%clk 0:02:26]} 11. d5 {[%clk 0:02:55]}  Ne7 {[%clk 0:02:25]} 12. Ng5 {[%clk 0:02:55]}  Nf6 {[%clk 0:02:23]} 13. Ne6 {[%clk 0:02:53]}  Bxe6 {[%clk 0:02:13]} 14. dxe6 {[%clk 0:02:53]}  c6 {[%clk 0:02:08]} 15. f4 {[%clk 0:02:50]}  Nc8 {[%clk 0:01:51]} 16. c5 {[%clk 0:02:31]}  dxc5 {[%clk 0:01:13]} 17. bxc5 {[%clk 0:02:25]}  Nd5 {[%clk 0:01:03]} 18. Nxd5 {[%clk 0:02:26]}  cxd5 {[%clk 0:01:01]} 19. fxe5 {[%clk 0:02:23]}  Ne7 {[%clk 0:00:59]} 20. Qb3 {[%clk 0:02:21]}  Qc7 {[%clk 0:00:59]} 21. Bf3 {[%clk 0:02:17]}  Bxe5 {[%clk 0:00:57]} 22. Bxe5 {[%clk 0:02:08]}  Qxe5 {[%clk 0:00:57]} 23. Qxb7 {[%clk 0:02:08]}  Qxe3+ {[%clk 0:00:44]} 24. Kh1 {[%clk 0:02:08]}  Qxc5 {[%clk 0:00:44]} 25. Rac1 {[%clk 0:02:04]}  Qd6 {[%clk 0:00:44]} 26. Rfe1 {[%clk 0:01:56]}  Rac8 {[%clk 0:00:40]} 27. Qd7 {[%clk 0:01:37]}  Qxa3 {[%clk 0:00:30]} 28. Rxc8 {[%clk 0:01:29]}  Rxc8 {[%clk 0:00:29]} 29. Bxd5 {[%clk 0:01:29]}  Rc1 {[%clk 0:00:25]} 30. Qe8+ {[%clk 0:01:24]}  Kg7 {[%clk 0:00:25]} 31. Qf7+ {[%clk 0:01:19]}  Kh6 {[%clk 0:00:25]} 32. Qf8+ {[%clk 0:01:19]}  Kg5 {[%clk 0:00:24]} 33. h4+ {[%clk 0:01:19]}  Kg4 {[%clk 0:00:19]} 34. Bf3+ {[%clk 0:00:46]}  Kg3 {[%clk 0:00:19]} 35. Bd1 {[%clk 0:00:46]}  Qd6 {[%clk 0:00:11]} 36. Qh6 {[%clk 0:00:42]}  Qf4 {[%clk 0:00:09]} 37. Re3+ {[%clk 0:00:40]}  Qxe3 {[%clk 0:00:01]} 38. Qxe3+ {[%clk 0:00:41]}  Kxh4 {[%clk 0:00:02]} 39. Qf4# {[%clk 0:00:42]} 1-0


[Site "https://www.chess.com"]

[Event "Titled Tuesday Blitz May 9 Late 2023"]
[White "Seletsky, Grigory"]
[Black "Aydincelebi, Kagan"]
[WhiteFideId "14112191"]
[BlackFideId "6361102"]
[WhiteElo "2491"]
[BlackElo "2180"]
[Result "0-1"]
[Round "06"]
[TimeControl "180+2"]
[Date "2023.05.09"]
[WhiteClock "0:01:11"]
[BlackClock "0:02:13"]

1. e4 {[%clk 0:02:57]}  c5 {[%clk 0:02:59]} 2. Nf3 {[%clk 0:02:55]}  Nc6 {[%clk 0:03:00]} 3. Bb5 {[%clk 0:02:53]}  g6 {[%clk 0:03:00]} 4. O-O {[%clk 0:02:52]}  Bg7 {[%clk 0:03:00]} 5. Bxc6 {[%clk 0:02:51]}  dxc6 {[%clk 0:03:01]} 6. d3 {[%clk 0:02:51]}  Bg4 {[%clk 0:03:00]} 7. h3 {[%clk 0:02:50]}  Bxf3 {[%clk 0:03:01]} 8. Qxf3 {[%clk 0:02:51]}  Nf6 {[%clk 0:03:02]} 9. Nc3 {[%clk 0:02:51]}  O-O {[%clk 0:03:01]} 10. Be3 {[%clk 0:02:51]}  Nd7 {[%clk 0:03:02]} 11. Qe2 {[%clk 0:02:51]}  e5 {[%clk 0:03:02]} 12. f4 {[%clk 0:02:51]}  exf4 {[%clk 0:03:03]} 13. Rxf4 {[%clk 0:02:49]}  Qe7 {[%clk 0:03:03]} 14. Raf1 {[%clk 0:02:46]}  Rae8 {[%clk 0:03:03]} 15. R4f3 {[%clk 0:02:38]}  b6 {[%clk 0:03:00]} 16. Qd2 {[%clk 0:02:35]}  Ne5 {[%clk 0:02:57]} 17. R3f2 {[%clk 0:02:32]}  Rd8 {[%clk 0:02:57]} 18. Bg5 {[%clk 0:02:32]}  f6 {[%clk 0:02:57]} 19. Bf4 {[%clk 0:02:26]}  Qe6 {[%clk 0:02:39]} 20. Qc1 {[%clk 0:02:24]}  c4 {[%clk 0:02:37]} 21. dxc4 {[%clk 0:02:21]}  Nxc4 {[%clk 0:02:36]} 22. Bh6 {[%clk 0:02:18]}  Bxh6 {[%clk 0:02:31]} 23. Qxh6 {[%clk 0:02:18]}  Nxb2 {[%clk 0:02:31]} 24. h4 {[%clk 0:02:17]}  Nc4 {[%clk 0:02:25]} 25. h5 {[%clk 0:02:17]}  Ne5 {[%clk 0:02:26]} 26. hxg6 {[%clk 0:02:17]}  hxg6 {[%clk 0:02:26]} 27. Ne2 {[%clk 0:02:13]}  Rd7 {[%clk 0:02:11]} 28. Qxf8+ {[%clk 0:01:17]}  Kxf8 {[%clk 0:02:12]} 29. Rxf6+ {[%clk 0:01:16]}  Qxf6 {[%clk 0:02:13]} 30. Rxf6+ {[%clk 0:01:16]}  Ke7 {[%clk 0:02:13]} 31. Rf2 {[%clk 0:01:14]}  Rd1+ {[%clk 0:02:13]} 32. Kh2 {[%clk 0:01:11]}  Ng4+ {[%clk 0:02:13]} 0-1


[Site "https://www.chess.com"]

[Event "Titled Tuesday Blitz May 9 Late 2023"]
[White "Prydun, Andriy"]
[Black "Gritsenko, Nikolai"]
[WhiteFideId "14145898"]
[BlackFideId "14112493"]
[WhiteElo "2164"]
[BlackElo "2389"]
[Result "0-1"]
[Round "06"]
[TimeControl "180+2"]
[Date "2023.05.09"]
[WhiteClock "0:00:52"]
[BlackClock "0:01:07"]

1. e4 {[%clk 0:03:00]}  d5 {[%clk 0:02:59]} 2. exd5 {[%clk 0:03:00]}  Nf6 {[%clk 0:02:59]} 3. d4 {[%clk 0:02:59]}  Bg4 {[%clk 0:02:59]} 4. f3 {[%clk 0:02:58]}  Bf5 {[%clk 0:02:59]} 5. c4 {[%clk 0:02:57]}  e6 {[%clk 0:02:59]} 6. g4 {[%clk 0:02:57]}  Bg6 {[%clk 0:02:58]} 7. h4 {[%clk 0:02:57]}  Bxb1 {[%clk 0:02:43]} 8. Rxb1 {[%clk 0:02:56]}  exd5 {[%clk 0:02:42]} 9. Qb3 {[%clk 0:02:28]}  dxc4 {[%clk 0:02:26]} 10. Bxc4 {[%clk 0:02:27]}  Bd6 {[%clk 0:01:57]} 11. Bxf7+ {[%clk 0:02:23]}  Kf8 {[%clk 0:01:57]} 12. Ne2 {[%clk 0:02:18]}  Nc6 {[%clk 0:01:54]} 13. Qxb7 {[%clk 0:02:06]}  Nb4 {[%clk 0:01:39]} 14. Bf4 {[%clk 0:01:44]}  Kxf7 {[%clk 0:01:33]} 15. Be5 {[%clk 0:01:14]}  Qe7 {[%clk 0:01:21]} 16. O-O {[%clk 0:01:01]}  Rhb8 {[%clk 0:01:13]} 17. Bxf6 {[%clk 0:00:58]}  Qxe2 {[%clk 0:01:08]} 18. Qe4 {[%clk 0:00:52]}  Qh2# {[%clk 0:01:07]} 0-1


[Site "https://www.chess.com"]

[Event "Titled Tuesday Blitz May 9 Late 2023"]
[White "Sowa, Ryan"]
[Black "Mikhalsky, Vladimir"]
[WhiteFideId "30901693"]
[BlackFideId "14144352"]
[WhiteElo "2646"]
[BlackElo "2236"]
[Result "1/2-1/2"]
[Round "06"]
[TimeControl "180+2"]
[Date "2023.05.09"]
[WhiteClock "0:00:18"]
[BlackClock "0:00:25"]

1. Nf3 {[%clk 0:02:59]}  c5 {[%clk 0:02:58]} 2. b3 {[%clk 0:02:55]}  Nc6 {[%clk 0:02:56]} 3. e4 {[%clk 0:02:54]}  e5 {[%clk 0:02:56]} 4. Bb2 {[%clk 0:02:53]}  d6 {[%clk 0:02:56]} 5. Bb5 {[%clk 0:02:50]}  Bd7 {[%clk 0:02:52]} 6. O-O {[%clk 0:02:50]}  a6 {[%clk 0:02:53]} 7. Bxc6 {[%clk 0:02:49]}  Bxc6 {[%clk 0:02:53]} 8. c3 {[%clk 0:02:50]}  Nf6 {[%clk 0:02:17]} 9. d4 {[%clk 0:02:50]}  Bxe4 {[%clk 0:02:15]} 10. Re1 {[%clk 0:02:41]}  Bxf3 {[%clk 0:02:05]} 11. Qxf3 {[%clk 0:02:39]}  e4 {[%clk 0:02:06]} 12. c4 {[%clk 0:02:25]}  Be7 {[%clk 0:01:59]} 13. Qg3 {[%clk 0:02:26]}  O-O {[%clk 0:01:46]} 14. d5 {[%clk 0:02:27]}  g6 {[%clk 0:01:32]} 15. Nd2 {[%clk 0:02:23]}  b5 {[%clk 0:01:31]} 16. Nxe4 {[%clk 0:02:21]}  Nxe4 {[%clk 0:01:30]} 17. Rxe4 {[%clk 0:02:20]}  Bf6 {[%clk 0:01:30]} 18. Bxf6 {[%clk 0:02:05]}  Qxf6 {[%clk 0:01:30]} 19. Rae1 {[%clk 0:02:06]}  bxc4 {[%clk 0:01:29]} 20. bxc4 {[%clk 0:02:06]}  Rab8 {[%clk 0:01:28]} 21. h4 {[%clk 0:01:37]}  h5 {[%clk 0:01:20]} 22. Rf4 {[%clk 0:01:31]}  Qd8 {[%clk 0:01:17]} 23. Rfe4 {[%clk 0:01:16]}  Rb7 {[%clk 0:01:17]} 24. f4 {[%clk 0:01:15]}  Qf6 {[%clk 0:01:14]} 25. f5 {[%clk 0:01:13]}  Rb2 {[%clk 0:00:58]} 26. fxg6 {[%clk 0:01:12]}  Qxg6 {[%clk 0:00:58]} 27. Qxg6+ {[%clk 0:00:56]}  fxg6 {[%clk 0:00:58]} 28. Re6 {[%clk 0:00:57]}  Kg7 {[%clk 0:00:55]} 29. Re7+ {[%clk 0:00:57]}  Rf7 {[%clk 0:00:53]} 30. R1e6 {[%clk 0:00:50]}  Rxa2 {[%clk 0:00:44]} 31. Rxf7+ {[%clk 0:00:49]}  Kxf7 {[%clk 0:00:44]} 32. Rxd6 {[%clk 0:00:50]}  Ra4 {[%clk 0:00:38]} 33. Rc6 {[%clk 0:00:48]}  Rxc4 {[%clk 0:00:37]} 34. Rxa6 {[%clk 0:00:48]}  Rxh4 {[%clk 0:00:37]} 35. Rc6 {[%clk 0:00:48]}  c4 {[%clk 0:00:36]} 36. d6 {[%clk 0:00:44]}  Rd4 {[%clk 0:00:36]} 37. d7 {[%clk 0:00:44]}  Rxd7 {[%clk 0:00:35]} 38. Rxc4 {[%clk 0:00:44]}  Rd3 {[%clk 0:00:35]} 39. Rc5 {[%clk 0:00:41]}  Kf6 {[%clk 0:00:34]} 40. Kh2 {[%clk 0:00:41]}  h4 {[%clk 0:00:34]} 41. Ra5 {[%clk 0:00:42]}  g5 {[%clk 0:00:34]} 42. Ra6+ {[%clk 0:00:42]}  Kf5 {[%clk 0:00:34]} 43. Ra5+ {[%clk 0:00:42]}  Kg4 {[%clk 0:00:34]} 44. Ra4+ {[%clk 0:00:43]}  Kh5 {[%clk 0:00:34]} 45. Ra5 {[%clk 0:00:44]}  Rd4 {[%clk 0:00:34]} 46. Rb5 {[%clk 0:00:44]}  Kg4 {[%clk 0:00:34]} 47. Ra5 {[%clk 0:00:44]}  Kf4 {[%clk 0:00:35]} 48. Ra8 {[%clk 0:00:43]}  Rd5 {[%clk 0:00:35]} 49. Rf8+ {[%clk 0:00:43]}  Rf5 {[%clk 0:00:35]} 50. Ra8 {[%clk 0:00:44]}  g4 {[%clk 0:00:35]} 51. Rb8 {[%clk 0:00:43]}  Rd5 {[%clk 0:00:34]} 52. Rf8+ {[%clk 0:00:42]}  Ke3 {[%clk 0:00:34]} 53. Re8+ {[%clk 0:00:41]}  Kf2 {[%clk 0:00:33]} 54. Rf8+ {[%clk 0:00:40]}  Ke3 {[%clk 0:00:33]} 55. Re8+ {[%clk 0:00:40]}  Kf4 {[%clk 0:00:33]} 56. Rf8+ {[%clk 0:00:40]}  Rf5 {[%clk 0:00:33]} 57. Ra8 {[%clk 0:00:40]}  Re5 {[%clk 0:00:32]} 58. Rf8+ {[%clk 0:00:40]}  Kg5 {[%clk 0:00:32]} 59. Rg8+ {[%clk 0:00:40]}  Kh5 {[%clk 0:00:32]} 60. Rh8+ {[%clk 0:00:40]}  Kg5 {[%clk 0:00:32]} 61. Rg8+ {[%clk 0:00:39]}  Kf4 {[%clk 0:00:32]} 62. Rf8+ {[%clk 0:00:38]}  Ke4 {[%clk 0:00:32]} 63. Rh8 {[%clk 0:00:37]}  g3+ {[%clk 0:00:30]} 64. Kh3 {[%clk 0:00:37]}  Ke3 {[%clk 0:00:30]} 65. Rxh4 {[%clk 0:00:36]}  Kf2 {[%clk 0:00:24]} 66. Rf4+ {[%clk 0:00:36]}  Kg1 {[%clk 0:00:25]} 67. Kxg3 {[%clk 0:00:18]}  Rg5+ {[%clk 0:00:25]} 1/2-1/2


[Site "https://www.chess.com"]

[Event "Titled Tuesday Blitz May 9 Late 2023"]
[White "merinasian"]
[Black "Kim, Sergey"]
[BlackFideId "13700570"]
[WhiteElo "2434"]
[BlackElo "2612"]
[Result "0-1"]
[Round "06"]
[TimeControl "180+2"]
[Date "2023.05.09"]
[WhiteClock "0:00:36"]
[BlackClock "0:01:19"]

1. d4 {[%clk 0:03:00]}  Nf6 {[%clk 0:02:59]} 2. Nf3 {[%clk 0:03:00]}  g6 {[%clk 0:02:59]} 3. g3 {[%clk 0:02:59]}  Bg7 {[%clk 0:02:59]} 4. Bg2 {[%clk 0:03:00]}  d6 {[%clk 0:03:00]} 5. O-O {[%clk 0:03:00]}  O-O {[%clk 0:03:00]} 6. b3 {[%clk 0:03:00]}  e5 {[%clk 0:02:59]} 7. dxe5 {[%clk 0:02:57]}  Nfd7 {[%clk 0:02:59]} 8. Bb2 {[%clk 0:02:11]}  dxe5 {[%clk 0:02:59]} 9. e4 {[%clk 0:02:06]}  Nc6 {[%clk 0:02:58]} 10. Nbd2 {[%clk 0:02:06]}  Nc5 {[%clk 0:02:48]} 11. Ba3 {[%clk 0:02:02]}  Qe7 {[%clk 0:02:46]} 12. Nc4 {[%clk 0:01:58]}  a5 {[%clk 0:02:38]} 13. Qd5 {[%clk 0:01:56]}  Nb4 {[%clk 0:02:34]} 14. Qd1 {[%clk 0:01:46]}  Nxe4 {[%clk 0:02:17]} 15. Qe1 {[%clk 0:01:37]}  Nd6 {[%clk 0:02:08]} 16. Bxb4 {[%clk 0:01:31]}  axb4 {[%clk 0:02:07]} 17. Qxb4 {[%clk 0:01:32]}  e4 {[%clk 0:02:01]} 18. Nfd2 {[%clk 0:01:18]}  Bxa1 {[%clk 0:01:55]} 19. Rxa1 {[%clk 0:01:19]}  f5 {[%clk 0:01:54]} 20. Nf1 {[%clk 0:01:11]}  Rf7 {[%clk 0:01:48]} 21. Nfe3 {[%clk 0:01:11]}  Nxc4 {[%clk 0:01:48]} 22. Qxc4 {[%clk 0:01:11]}  Be6 {[%clk 0:01:47]} 23. Qc3 {[%clk 0:01:03]}  Qf6 {[%clk 0:01:45]} 24. Qxf6 {[%clk 0:01:03]}  Rxf6 {[%clk 0:01:45]} 25. Rd1 {[%clk 0:01:03]}  Rxa2 {[%clk 0:01:41]} 26. Bf1 {[%clk 0:00:59]}  Rf8 {[%clk 0:01:38]} 27. Bc4 {[%clk 0:00:58]}  Bxc4 {[%clk 0:01:32]} 28. bxc4 {[%clk 0:00:56]}  c6 {[%clk 0:01:28]} 29. Rd7 {[%clk 0:00:55]}  Rf7 {[%clk 0:01:28]} 30. Rd8+ {[%clk 0:00:55]}  Kg7 {[%clk 0:01:28]} 31. h4 {[%clk 0:00:52]}  Kf6 {[%clk 0:01:23]} 32. g4 {[%clk 0:00:44]}  f4 {[%clk 0:01:19]} 33. g5+ {[%clk 0:00:36]}  Ke7 {[%clk 0:01:19]} 0-1


[Site "https://www.chess.com"]

[Event "Titled Tuesday Blitz May 9 Late 2023"]
[White "Ibadov, Dashgyn"]
[Black "Vega Gutierrez, Sabrina"]
[WhiteFideId "24107514"]
[BlackFideId "2219026"]
[WhiteElo "2208"]
[BlackElo "2209"]
[Result "0-1"]
[Round "06"]
[TimeControl "180+2"]
[Date "2023.05.09"]
[WhiteClock "0:00:02"]
[BlackClock "0:00:06"]

1. e4 {[%clk 0:03:00]}  c5 {[%clk 0:02:59]} 2. Nf3 {[%clk 0:03:00]}  e6 {[%clk 0:02:59]} 3. d4 {[%clk 0:03:00]}  cxd4 {[%clk 0:03:00]} 4. Nxd4 {[%clk 0:03:01]}  Nf6 {[%clk 0:02:59]} 5. Nc3 {[%clk 0:03:01]}  d6 {[%clk 0:02:58]} 6. g4 {[%clk 0:03:00]}  h6 {[%clk 0:02:58]} 7. h4 {[%clk 0:02:59]}  Nc6 {[%clk 0:02:57]} 8. Rg1 {[%clk 0:02:55]}  d5 {[%clk 0:02:55]} 9. Nxc6 {[%clk 0:02:44]}  bxc6 {[%clk 0:02:54]} 10. g5 {[%clk 0:02:45]}  hxg5 {[%clk 0:02:52]} 11. hxg5 {[%clk 0:02:46]}  Nxe4 {[%clk 0:02:49]} 12. Nxe4 {[%clk 0:02:46]}  dxe4 {[%clk 0:02:49]} 13. Qxd8+ {[%clk 0:02:46]}  Kxd8 {[%clk 0:02:49]} 14. Be3 {[%clk 0:02:39]}  Bd6 {[%clk 0:02:34]} 15. Rg4 {[%clk 0:02:37]}  e5 {[%clk 0:02:25]} 16. Rxe4 {[%clk 0:02:36]}  Kc7 {[%clk 0:01:57]} 17. O-O-O {[%clk 0:02:34]}  Be6 {[%clk 0:01:41]} 18. Ra4 {[%clk 0:02:33]}  Bd5 {[%clk 0:00:52]} 19. Rxa7+ {[%clk 0:02:13]}  Rxa7 {[%clk 0:00:51]} 20. Bxa7 {[%clk 0:02:14]}  Ra8 {[%clk 0:00:44]} 21. Be3 {[%clk 0:02:14]}  Rxa2 {[%clk 0:00:43]} 22. Kb1 {[%clk 0:02:14]}  Ra8 {[%clk 0:00:42]} 23. c4 {[%clk 0:01:52]}  Bf3 {[%clk 0:00:27]} 24. Rd2 {[%clk 0:01:48]}  Bb4 {[%clk 0:00:22]} 25. Rc2 {[%clk 0:01:29]}  Be4 {[%clk 0:00:19]} 26. f3 {[%clk 0:01:28]}  Bxc2+ {[%clk 0:00:08]} 27. Kxc2 {[%clk 0:01:29]}  Rh8 {[%clk 0:00:08]} 28. Bd3 {[%clk 0:01:25]}  Rh2+ {[%clk 0:00:07]} 29. Kb3 {[%clk 0:01:25]}  Be7 {[%clk 0:00:06]} 30. c5 {[%clk 0:01:24]}  Rg2 {[%clk 0:00:06]} 31. g6 {[%clk 0:00:56]}  Rg3 {[%clk 0:00:06]} 32. Be4 {[%clk 0:00:47]}  f5 {[%clk 0:00:06]} 33. Bf2 {[%clk 0:00:20]}  Rg2 {[%clk 0:00:04]} 34. Bh4 {[%clk 0:00:07]}  Bxh4 {[%clk 0:00:03]} 35. Bxf5 {[%clk 0:00:07]}  Rf2 {[%clk 0:00:03]} 36. Be4 {[%clk 0:00:08]}  Bg5 {[%clk 0:00:02]} 37. Kc3 {[%clk 0:00:08]}  Bf6 {[%clk 0:00:03]} 38. b4 {[%clk 0:00:08]}  Rh2 {[%clk 0:00:03]} 39. Kc4 {[%clk 0:00:08]}  Bg5 {[%clk 0:00:03]} 40. b5 {[%clk 0:00:09]}  cxb5+ {[%clk 0:00:03]} 41. Kxb5 {[%clk 0:00:09]}  Rb2+ {[%clk 0:00:03]} 42. Kc4 {[%clk 0:00:10]}  Be3 {[%clk 0:00:03]} 43. Kd5 {[%clk 0:00:10]}  Rb5 {[%clk 0:00:03]} 44. Ke6 {[%clk 0:00:03]}  Rxc5 {[%clk 0:00:03]} 45. Kf7 {[%clk 0:00:04]}  Bh6 {[%clk 0:00:04]} 46. Ke6 {[%clk 0:00:04]}  Kd8 {[%clk 0:00:03]} 47. Kd6 {[%clk 0:00:03]}  Ra5 {[%clk 0:00:03]} 48. Ke6 {[%clk 0:00:04]}  Kc7 {[%clk 0:00:02]} 49. Ke7 {[%clk 0:00:04]}  Kb6 {[%clk 0:00:03]} 50. Kd6 {[%clk 0:00:04]}  Ra3 {[%clk 0:00:02]} 51. Kxe5 {[%clk 0:00:04]}  Kc5 {[%clk 0:00:02]} 52. Ke6 {[%clk 0:00:04]}  Re3 {[%clk 0:00:02]} 53. Kf5 {[%clk 0:00:03]}  Kd4 {[%clk 0:00:02]} 54. Bc6 {[%clk 0:00:03]}  Rc3 {[%clk 0:00:02]} 55. Be4 {[%clk 0:00:03]}  Ke3 {[%clk 0:00:02]} 56. Ke6 {[%clk 0:00:03]}  Rc5 {[%clk 0:00:02]} 57. Bb7 {[%clk 0:00:01]}  Rb5 {[%clk 0:00:02]} 58. Bc6 {[%clk 0:00:01]}  Rb6 {[%clk 0:00:02]} 59. Kd7 {[%clk 0:00:02]}  Rxc6 {[%clk 0:00:03]} 60. Kxc6 {[%clk 0:00:03]}  Kxf3 {[%clk 0:00:03]} 61. Kd6 {[%clk 0:00:02]}  Kf4 {[%clk 0:00:04]} 62. Ke6 {[%clk 0:00:02]}  Kg5 {[%clk 0:00:04]} 63. Kf7 {[%clk 0:00:03]}  Kf5 {[%clk 0:00:05]} 64. Kg8 {[%clk 0:00:02]}  Kxg6 {[%clk 0:00:06]} 65. Kh8 {[%clk 0:00:03]}  Kf6 {[%clk 0:00:05]} 66. Kh7 {[%clk 0:00:04]}  Bd2 {[%clk 0:00:05]} 67. Kh8 {[%clk 0:00:02]}  g5 {[%clk 0:00:06]} 0-1


[Site "https://www.chess.com"]

[Event "Titled Tuesday Blitz May 9 Late 2023"]
[White "Martinez Reyes, Pedro Ramon"]
[Black "Villuendas Valero, Adrian"]
[WhiteFideId "3901807"]
[BlackFideId "2262460"]
[WhiteElo "2340"]
[BlackElo "2328"]
[Result "1-0"]
[Round "06"]
[TimeControl "180+2"]
[Date "2023.05.09"]
[WhiteClock "0:00:50"]
[BlackClock "0:00:05"]

1. d4 {[%clk 0:03:00]}  e6 {[%clk 0:02:59]} 2. c4 {[%clk 0:03:00]}  Bb4+ {[%clk 0:02:58]} 3. Nd2 {[%clk 0:02:59]}  Nf6 {[%clk 0:02:58]} 4. Nf3 {[%clk 0:02:59]}  d6 {[%clk 0:02:54]} 5. e3 {[%clk 0:02:47]}  O-O {[%clk 0:02:52]} 6. Be2 {[%clk 0:02:47]}  Nc6 {[%clk 0:02:46]} 7. O-O {[%clk 0:02:47]}  Bxd2 {[%clk 0:02:46]} 8. Nxd2 {[%clk 0:02:43]}  e5 {[%clk 0:02:45]} 9. d5 {[%clk 0:02:44]}  Ne7 {[%clk 0:02:34]} 10. b3 {[%clk 0:02:44]}  a5 {[%clk 0:02:33]} 11. Bb2 {[%clk 0:02:43]}  Ng6 {[%clk 0:02:33]} 12. Qc2 {[%clk 0:02:41]}  Nd7 {[%clk 0:02:28]} 13. f4 {[%clk 0:02:39]}  f5 {[%clk 0:02:04]} 14. Bd3 {[%clk 0:02:28]}  e4 {[%clk 0:01:52]} 15. Be2 {[%clk 0:02:28]}  Nc5 {[%clk 0:01:50]} 16. a3 {[%clk 0:02:27]}  Bd7 {[%clk 0:01:46]} 17. b4 {[%clk 0:02:25]}  Na4 {[%clk 0:01:44]} 18. Bd4 {[%clk 0:02:24]}  c5 {[%clk 0:01:44]} 19. dxc6 {[%clk 0:02:24]}  bxc6 {[%clk 0:01:44]} 20. Nb3 {[%clk 0:02:14]}  axb4 {[%clk 0:01:34]} 21. axb4 {[%clk 0:02:15]}  Qe7 {[%clk 0:01:33]} 22. Ra2 {[%clk 0:02:02]}  c5 {[%clk 0:01:30]} 23. bxc5 {[%clk 0:02:00]}  dxc5 {[%clk 0:01:15]} 24. Ba1 {[%clk 0:01:59]}  Rfb8 {[%clk 0:01:13]} 25. Rd1 {[%clk 0:01:46]}  Be8 {[%clk 0:01:12]} 26. Rd5 {[%clk 0:01:36]}  Bd7 {[%clk 0:01:02]} 27. Rd2 {[%clk 0:01:03]}  Nf8 {[%clk 0:00:53]} 28. h3 {[%clk 0:01:00]}  Rb4 {[%clk 0:00:49]} 29. Kh2 {[%clk 0:00:59]}  Rab8 {[%clk 0:00:48]} 30. Ra3 {[%clk 0:00:59]}  Be6 {[%clk 0:00:35]} 31. Qa2 {[%clk 0:00:57]}  Nb6 {[%clk 0:00:28]} 32. Ra7 {[%clk 0:00:57]}  Rb7 {[%clk 0:00:26]} 33. Rxb7 {[%clk 0:00:53]}  Qxb7 {[%clk 0:00:26]} 34. Nxc5 {[%clk 0:00:53]}  Qc6 {[%clk 0:00:20]} 35. Nxe6 {[%clk 0:00:53]}  Nxe6 {[%clk 0:00:20]} 36. c5 {[%clk 0:00:53]}  Nc8 {[%clk 0:00:17]} 37. Rd6 {[%clk 0:00:52]}  Nxd6 {[%clk 0:00:15]} 38. Qxe6+ {[%clk 0:00:52]}  Kh8 {[%clk 0:00:05]} 39. cxd6 {[%clk 0:00:50]} 1-0


[Site "https://www.chess.com"]